Cogmind - Beta 12 @@@ ROGUE MODE // 2023.04.18 @ 17:55:12 Player: Zirov Result: Destroyed by as-60928 with Assembled Heavy Rifle Performance ------------- Evolutions (0) 0 Regions Visited (4) 800 Robots Destroyed (25) 125 Value Destroyed (494) 494 Prototype IDs (25) 500 Alien Tech Used (0) 0 Bonus (406) 406 TOTAL SCORE: 2325 Bonus ------- Follower Combat Kills 106 Aligned with FarCom 300 Cogmind --------- Core Integrity 0/250 Matter 250/300 Energy 100/100 System Corruption 4% Temperature Cool (0) Movement Treading (160) Location -9/Mines Parts ------- > --- POWER (1) -------- (None) > --- PROPULSION (2) --- Light Treads Light Treads > --- UTILITY (2) ------ Large Storage Unit > --- WEAPON (2) ------- Autogun > --- INVENTORY (15) --- Light Treads Light Treads Light Treads Flying Fortress v7 Heat Sink High-capacity Storage Unit Structural Scanner Autogun Autogun Battle Cannon Heavy Hammer Peak State ------------ > --- POWER ------------ Light Ion Engine > --- PROPULSION ------- Light Treads Light Treads > --- UTILITY ---------- Large Storage Unit Structural Scanner > --- WEAPON ----------- Autogun Autogun > --- INVENTORY -------- Light Treads Light Treads Light Treads Flying Fortress v7 Heat Sink High-capacity Storage Unit Sensor Array Autogun Autogun Grenade Launcher Heavy Hammer [Rating: 13] Favorites ----------- Power Light Ion Engine Engine Light Ion Engine Propulsion Light Treads Treads Light Treads Leg Aluminum Leg Utility Large Storage Unit Device Structural Scanner Storage Large Storage Unit Processor Signal Interpreter Weapon Autogun Energy Gun Medium Laser Ballistic Gun Autogun Launcher Grenade Launcher Build | -11 -10 -10 -10 -9 ------- Run | Jun Mat Min Exi Min Slots Evolved . | . . . . . Power . | . . . . . Propulsion . | . . . . . Utility . | . . . . . Weapon . | . . . . . Parts Attached 33 | 7 18 2 . 6 Power 3 | 1 2 . . . Engine 3 | 1 2 . . . Core . | . . . . . Reactor . | . . . . . Propulsion 9 | 2 7 . . . Treads 2 | . 2 . . . Leg 7 | 2 5 . . . Wheel . | . . . . . Hover . | . . . . . Flight . | . . . . . Utility 12 | 2 4 2 . 4 Device 6 | 1 2 1 . 2 Storage 5 | 1 2 . . 2 Processor 1 | . . 1 . . Hackware . | . . . . . Protection . | . . . . . Artifact . | . . . . . Weapon 9 | 2 5 . . 2 Energy Gun 2 | 1 1 . . . Energy Cannon . | . . . . . Ballistic Gun 6 | 1 4 . . 1 Ballistic Cannon . | . . . . . Launcher 1 | . . . . 1 Special Weapon . | . . . . . Impact Weapon . | . . . . . Slashing Weapon . | . . . . . Piercing Weapon . | . . . . . Special Melee Weapon . | . . . . . Unidentified Prototypes . | . . . . . Parts Lost 11 | . 7 . . 4 Power 2 | . 1 . . 1 Propulsion 2 | . 2 . . . Utility 2 | . 1 . . 1 Weapon 5 | . 3 . . 2 Highest Loss Streak 5 | . 5 . . 4 To Critical Strikes . | . . . . . Average Slot Usage (%) 99 | . 99 100 100 99 Engine 13 | . 14 14 14 13 Treads 19 | . 1 28 28 28 Leg 8 | . 25 . . . Device 13 | . 13 14 14 13 Storage 14 | . 14 14 14 14 Energy Gun 3 | . 9 . . . Ballistic Gun 24 | . 18 28 28 27 Naked Turns . | . . . . . Heaviest Build 30 | 13 30 30 30 30 Greatest Support 40 | 20 40 40 40 40 Greatest Overweight (x) . | . . . . . Average Overweight (x) . | . . . . . Largest Inventory Capacity 20 | 8 15 15 15 20 Average Capacity 13 | 7 9 15 15 15 Most Carried 15 | 2 13 12 14 15 Average Carried 11 | 1 8 11 12 14 Final Capacity 15 | 8 15 15 15 15 Final Carried 14 | 2 13 12 14 14 Class Distribution -------------------- 100% | Mutant Dominant Class ---------------- Mutant | -10/Materials Mutant | -10/Mines Mutant | -10/Exiles Mutant | -9/Mines Resources | -11 -10 -10 -10 -9 ----------- Run | Jun Mat Min Exi Min Matter Collected 755 | 242 455 20 . 38 Remotely . | . . . . . Salvage Created 927 | 25 882 . . 20 Parts 57 | 3 54 . . . Haulers Intercepted 1 | . 1 . . . Recyclers Shooed 3 | . 3 . . . Parts Field Recycled . | . . . . . Retrieved Matter . | . . . . . Parts Self-Destructed . | . . . . . Prevented . | . . . . . Kills | -11 -10 -10 -10 -9 ------- Run | Jun Mat Min Exi Min Combat Hostiles Destroyed 23 | . 16 . . 7 Guns 15 | . 15 . . . AOE 7 | . . . . 7 Classes Destroyed 8 | 1 6 . . 1 Worker 2 | . 2 . . . Tunneler 1 | 1 . . . . Hauler 1 | . 1 . . . Recycler 3 | . 3 . . . Watcher 2 | . 2 . . . Swarmer 6 | . 6 . . . Grunt 10 | . 10 . . . Assembled 7 | . . . . 7 Best Kill Streak 9 | 1 9 . . 7 Combat Bots Only 7 | . 6 . . 7 Max Kills in Single Turn 4 | 1 1 . . 4 Gunslinging . | . . . . . Exploded 4 | . . . . 4 Melee . | . . . . . Uniques/NPCs Destroyed . | . . . . . Combat | -11 -10 -10 -10 -9 -------- Run | Jun Mat Min Exi Min Damage Taken 1582 | . 923 7 . 652 Core 259 | . 166 . . 93 Absorbed by Shields . | . . . . . Core Remaining (%) 100 | 100 . . . . Volleys Fired 81 | 1 75 . . 5 Largest 2 | 2 2 . . 2 Hottest 70 | 70 70 . . 46 Shots Fired 158 | 2 150 . . 6 Gun 154 | 2 150 . . 2 Cannon . | . . . . . Launcher 4 | . . . . 4 Special . | . . . . . Kinetic 92 | 1 89 . . 2 Thermal 62 | 1 61 . . . Explosive 4 | . . . . 4 Electromagnetic . | . . . . . Robot Hit Streak 17 | 1 17 . . 4 Robot Miss Streak 6 | . 6 . . 3 Penetration Max . | . . . . . Secondary Targets 3 | . 3 . . . Max Gunslinging Chain 1 | . 1 . . . Shots Hit Robots 105 | 1 101 . . 3 Core Hits 56 | 1 39 . . 16 Critical Kills . | . . . . . Critical Parts Destroyed . | . . . . . Critical Strikes 3 | . 3 . . . Burn 3 | . 3 . . . Melee Attacks . | . . . . . Impact . | . . . . . Slashing . | . . . . . Piercing . | . . . . . Sneak Attacks . | . . . . . Combat Hostiles . | . . . . . Follow-up Attacks . | . . . . . Damage Inflicted 1982 | 11 1333 . . 638 Guns 1374 | 11 1333 . . 30 Cannons . | . . . . . Explosions 608 | . . . . 608 Melee . | . . . . . Ramming . | . . . . . Kinetic 799 | 11 758 . . 30 Thermal 575 | . 575 . . . Explosive 608 | . . . . 608 Electromagnetic . | . . . . . Impact . | . . . . . Slashing . | . . . . . Piercing . | . . . . . Highest Corruption 4 | . . . . 4 Average Corruption 3 | . . . . 3 Corruption Purged . | . . . . . Corruption Blocked . | . . . . . Effects 1 | . . . . 1 Data Loss (minor) 1 | . . . . 1 Overload Shots . | . . . . . Overflow Damage 17 | . . . . 17 Projectiles . | . . . . . Explosions 17 | . . . . 17 Melee . | . . . . . Knockbacks . | . . . . . Impact . | . . . . . Kinetic . | . . . . . Secondary . | . . . . . Self-Inflicted Damage 97 | . . . . 97 Shots 3 | . . . . 3 Rammed 1 | . . 1 . . Targets Rammed 1 | . . 1 . . Kicked . | . . . . . Crushed . | . . . . . Highest Temperature 223 | 9 223 . . 57 Average Temperature 64 | 6 66 . . 18 Received Heat Transfer 527 | . 387 . . 140 Siege Activations . | . . . . . Robots Corrupted . | . . . . . Combat Hostiles . | . . . . . Parts Fried . | . . . . . Impact Corruptions . | . . . . . Robots Melted 1 | . 1 . . . Combat Hostiles 1 | . 1 . . . Parts Melted 4 | . 4 . . . Heat Transferred 1924 | . 1924 . . . Parts Sabotaged . | . . . . . Parts Stolen . | . . . . . Parts Stripped . | . . . . . Power Chain Reactions . | . . . . . Missiles Intercepted . | . . . . . Alert | -11 -10 -10 -10 -9 ------- Run | Jun Mat Min Exi Min Peak Influence 315 | 5 315 96 . 81 Initial 66 | . 3 66 . . Average 67 | 2 120 35 . 41 Maximum Alert Level 1 | . 1 . . . Low Security (%) 95 | 100 87 100 . 100 Level 1 4 | . 12 . . . Level 2 . | . . . . . Level 3 . | . . . . . Level 4 . | . . . . . Level 5 . | . . . . . High Security . | . . . . . Max Security . | . . . . . Squads Dispatched 4 | . 4 . . . Investigation 3 | . 3 . . . Extermination . | . . . . . Reinforcement 1 | . 1 . . . Assault . | . . . . . Garrison . | . . . . . Intercept . | . . . . . Searches Triggered . | . . . . . Construction Impeded . | . . . . . Haulers Reinforced . | . . . . . Active Scanning Responses . | . . . . . Cargo Convoy Interrupts . | . . . . . Stealth | -11 -10 -10 -10 -9 --------- Run | Jun Mat Min Exi Min Distress Signals 3 | . 2 1 . . Communications Jammed . | . . . . . Distress Signals . | . . . . . Times Spotted 46 | . 25 3 . 18 Peak Tracking Total 17 | . 5 3 . 17 Tactical Retreats 2 | . 1 1 . . Traps | -11 -10 -10 -10 -9 ------- Run | Jun Mat Min Exi Min Traps Triggered . | . . . . . Indirectly . | . . . . . Trap Hack Attempts . | . . . . . Triggered . | . . . . . Disarmed . | . . . . . Reprogrammed . | . . . . . Reused . | . . . . . Traps Extracted . | . . . . . Installed . | . . . . . Triggered . | . . . . . Exploded 1 | . . . 1 . Machines | -11 -10 -10 -10 -9 ---------- Run | Jun Mat Min Exi Min Machines Disabled 2 | . 2 . . . Max in Single Turn 1 | . 1 . . . Machines Repaired . | . . . . . Machines Sabotaged . | . . . . . Overloaded Fab Kills . | . . . . . Hacking | -11 -10 -10 -10 -9 --------- Run | Jun Mat Min Exi Min Machines Accessed 8 | . 7 . 1 . Terminals 6 | . 6 . . . Fabricators . | . . . . . Repair Stations . | . . . . . Recycling Units 1 | . 1 . . . Scanalyzers . | . . . . . Garrison Access . | . . . . . Total Hacks 22 | . 21 . 1 . Successful 9 | . 8 . 1 . Failed 13 | . 13 . . . Catastrophic 2 | . 2 . . . Database Lockouts . | . . . . . Manual 5 | . 4 . 1 . Terminals 18 | . 18 . . . Fabricators . | . . . . . Repair Stations . | . . . . . Recycling Units 3 | . 3 . . . Scanalyzers . | . . . . . Garrison Access . | . . . . . Terminal Hacks 9 | . 8 . 1 . Prototype ID Bank 1 | . 1 . . . Branch Access Points 1 | . 1 . . . Locate Traps 4 | . 4 . . . Hauler Manifests 1 | . 1 . . . Registered Components 1 | . 1 . . . EX-Prototype ID Bank 1 | . . . 1 . Fabricator Hacks . | . . . . . Repair Station Hacks . | . . . . . Recycling Unit Hacks . | . . . . . Scanalyzer . | . . . . . Garrison Access Hacks . | . . . . . Unauthorized Hacks . | . . . . . Terminals . | . . . . . Fabricators . | . . . . . Repair Stations . | . . . . . Recycling Units . | . . . . . Scanalyzers . | . . . . . Garrison Access . | . . . . . Data Cores Recovered . | . . . . . Used . | . . . . . Hacking Detections 7 | . 7 . . . Full Trace Events 4 | . 4 . . . Feedback Events . | . . . . . Feedback Blocked . | . . . . . Robot Schematics Acquired . | . . . . . Robots Built . | . . . . . Authchips . | . . . . . Time . | . . . . . Total Robot Build Rating . | . . . . . Part Schematics Acquired . | . . . . . Parts Built . | . . . . . Authchips . | . . . . . Time . | . . . . . Total Part Build Rating . | . . . . . Parts Repaired . | . . . . . Time . | . . . . . Parts Recycled . | . . . . . Recycled Matter . | . . . . . Retrieved Matter . | . . . . . Retrieved Components . | . . . . . Parts Scanalyzed . | . . . . . Part Schematics Acquired . | . . . . . Parts Damaged . | . . . . . Bothacking | -11 -10 -10 -10 -9 ------------ Run | Jun Mat Min Exi Min Used RIF Installer . | . . . . . Robots Hacked . | . . . . . Non-combat . | . . . . . Combat . | . . . . . Robot Hacks Applied . | . . . . . Relay Couplers Released . | . . . . . Fabnet Peak Effective % . | . . . . . Robots Rewired . | . . . . . Allies Hacked . | . . . . . Hacks Repelled . | . . . . . Allies | -11 -10 -10 -10 -9 -------- Run | Jun Mat Min Exi Min Total Allies 3 | . . 3 . . Largest Group 3 | . . 3 3 3 Highest-Rated Group 40 | . . 40 40 40 Highest-Rated Ally 16 | . . 16 16 16 Total Orders . | . . . . . Ally Attacks 24 | . . 12 . 12 Total Damage 198 | . . 65 . 133 Kills 6 | . . 3 . 3 Allies Corrupted . | . . . . . Allies Melted . | . . . . . Intel | -11 -10 -10 -10 -9 ------- Run | Jun Mat Min Exi Min Robot Analysis Total . | . . . . . Derelict Logs Recovered 4 | . . 2 . 2 Drone Launches . | . . . . . Drone Recoveries . | . . . . . Exploration | -11 -10 -10 -10 -9 ------------- Run | Jun Mat Min Exi Min Turns Passed 2983 | 66 968 876 343 730 Spaces Moved 1755 | 44 540 525 213 433 Core 3 | 3 . . . . Treads 1209 | . 38 525 213 433 Legs 543 | 41 502 . . . Wheels . | . . . . . Hover . | . . . . . Flight . | . . . . . Fastest Speed 50 | 50 120 160 160 160 Average Speed 147 | 115 122 160 160 160 Slowest Speed 160 | 120 160 160 160 160 Overloaded Moves . | . . . . . Propulsion Burnouts . | . . . . . Robots Hopped . | . . . . . Cave-ins Triggered . | . . . . . Exploration Rate (%) 61 | 3 68 98 60 76 Regions Visited 4 Branch Regions 3 Pre-discovered Areas 1 | . . . . 1 Known Exits Taken 1 | . 1 . . . Unknown Exits Taken 3 | 1 . 1 1 . Scrap Searched 5 | . . 3 . 2 Spaces Dug . | . . . . . Terrain Destroyed 34 | . . . . 34 Melee . | . . . . . Projectile . | . . . . . AOE 34 | . . . . 34 Terrain Rammed . | . . . . . Walls Destroyed . | . . . . . Machines Disabled . | . . . . . Actions | -11 -10 -10 -10 -9 --------- Run | Jun Mat Min Exi Min Total 1993 | 54 701 560 216 462 Wait 79 | 1 31 31 1 15 Move 1751 | 43 539 524 212 433 Hop . | . . . . . Pick Up 29 | 2 23 1 1 2 Fast Attach 9 | 7 2 . . . Attach 8 | . 7 . . 1 Detach . | . . . . . Swap 16 | . 9 2 . 5 Drop 19 | . 15 1 2 1 Fire 81 | 1 75 . . 5 Melee . | . . . . . Ram . | . . . . . Kick . | . . . . . Crush 1 | . . 1 . . Escape Stasis . | . . . . . Rewire . | . . . . . Trap . | . . . . . Miscellaneous . | . . . . . Route ------- -11/Junkyard -10/Materials (discovered 4 exits: *Mat x2 / *Min x2) -10/Mines (discovered 3 exits: *Mat x2 / *Exi) -10/Exiles -9/Mines (discovered 1 exit: Mat) History --------- Turn | Location | Event 19 | -11/Junkyard | Discovered new exit (range 15) 67 | -11/Junkyard | Entered Materials 279 | -10/Materials | Discovered new exit (range 16) 318 | -10/Materials | Build established: Mutant 349 | -10/Materials | Identified exit to Mines 600 | -10/Materials | Discovered new exit (range 4) 749 | -10/Materials | Core integrity fell below 50% 804 | -10/Materials | Lost 5 parts (1p2n2w) 1035 | -10/Materials | Entered Mines 1318 | -10/Mines | YI-UF0 nonchalantly dropped a Grenade Launcher on the ground 1455 | -10/Mines | Discovered new exit (range 5) 1469 | -10/Mines | Assisted by bots powering up and referring to "LRC-V3" 1580 | -10/Mines | Identified exit to Materials 1662 | -10/Mines | Learned 2 Materials zone layouts 1905 | -10/Mines | Deemed a non-threat by the Exiles lab entrance 1905 | -10/Mines | Discovered new exit (range 5) 1911 | -10/Mines | Entered Exiles 1911 | -10/Exiles | Accompanied by 3 allies 1951 | -10/Exiles | Met 8R-AWN 1977 | -10/Exiles | Met EX-HEX 2025 | -10/Exiles | Met EX-BIN 2046 | -10/Exiles | Aligned with FarCom system 2047 | -10/Exiles | Given EX-Vault access code 2085 | -10/Exiles | Opened EX-Vault 2099 | -10/Exiles | Found Flying Fortress v7 2135 | -10/Exiles | Warned to stay clear of 0b10 Research branches 2152 | -10/Exiles | Exiles lab attacked by MAIN.C 2241 | -10/Exiles | Discovered new exit (range 10) 2254 | -10/Exiles | Left Exiles lab with Flying Fortress v7 2254 | -10/Exiles | Entered Mines 2254 | -9/Mines | Accompanied by 3 allies 2644 | -9/Mines | Identified exit to Materials 2720 | -9/Mines | A weapon hastily lodged in a ceiling crevice suddenly fell to the ground 2942 | -9/Mines | Assembled infested the area 2945 | -9/Mines | Learned location of Zion (-7) 2976 | -9/Mines | Core integrity fell below 20% 2984 | -9/Mines | Destroyed by as-60928 with Assembled Heavy Rifle Last Messages --------------- 02948_ AM-PHS destroyed. 02956_ Mercenary 1a destroyed. 02961_ Lgt. Ion Engine destroyed. 02961_ System corrupted by crushing effect (+2). 02962_ as-07265 destroyed. 02962_ Destroyed Asb. Hover Unit. 02963_ as-80128 destroyed. 02964_ Seismic Detector destroyed. 02964_ System corrupted by crushing effect (+2). 02964_ as-57349 destroyed. 02964_ as-55649 destroyed. 02964_ as-70496 destroyed. 02964_ as-43272 destroyed. 02966_ as-90280 destroyed. 02966_ as-99193 destroyed. 02967_ Grenade Launcher destroyed. 02969_ Critical hit (Burn: +80). 02970_ System corrupted: Component data lost. 02972_ Autogun destroyed. 02976_ The unstable cave ceiling collapses. Map ----- +----------------------------------------------------+ | ??????? #??????????????????????????## | | ??????? ##????????????????????????## | | ???????? ##???????????????????????## | | ???????? #???????????????????????### | | ??#????? ???????????????????????### | | ??# ???? ??????????????????????????? | | ??# ???# ??????????????????????????? | | ??# ???# #??????????????????????????? | | ??# ??#% #?????????????????????????? | | ?## =###= #?????????????????????????? | | ?# % = ##????????????????????????? | | ?# =%* %% ##????????????????????????? | | ?# = % ##??????????????????###### | | ?????# #??????????????????# # | | ??????# #???????????????????# | | ???#??# % #???????????????????# # | | ???# # #???????????????????##### | | ???# #???????????????????????? | | ???## a###?????????????????????# | | ????####### a #?????????????????????# | | ??????????###a #?????????????????????# | | ????????????# #?????????????????????# | | ????????????#aa#?????????????????????? | | ????????????#aa#???????##????????????? | | ????????????#a ####??## #????????????? | | ????????????#@ #??# ##???????????? | | ????????????# #?## #?????####### | | ????????????#### u### #?????# | | ???????????????# #??????# | | ??????????????## ##??????# #### | | ??????????????# ##??????# #??# | | ????########### ##?????# #??# | | ???## ### ####### #??## | | ???# ### #?## #???? | | ???# ##?# #??##= #???? | | ???# ##?# #???# ########???? | | ???# ### #??## = #??????????? | | ???## #??# ##??????????? | | ????# #### #?## #???????????? | | ????# #??# ### #???????????? | | ????# #??# ##???????????? | | ????# #??# #?????????#### | | ????# #### ##????????## # | | ????# ####?????????# | | ????# ##????????????# | | ????####### #######?????????????## | | ??????????####????????????????????### | | ????????????????????????????????????## | | ?????????????????????????????????????# | | ?????????????????????????????????????# | +----------------------------------------------------+ Best States ------------- Heat Dissipation 35 Energy Generation 10 Energy Capacity 250 Matter Stores 300 Matter Capacity 300 Sight Range 16 Robot Scan Range 14 Terrain Scan Density 10 Evasion (%) 55 Recoil Reduction 2 Item Schematics ----------------- None Robot Schematics ------------------ None Fabricated ------------ Nothing Alien Tech Used ----------------- None Achievements -------------- None Challenges ------------ None Game ------ Seed LightAlertShield Manual? 0 Play Time 00:28:54 Cumulative 57.5 hours Start 2023.04.18 @ 17:24:06 End 2023.04.18 @ 17:55:12 Sessions 1 Manual Loads 0 Difficulty Rogue Special Mode None Game No. 57 Rogue 57 Adventurer 0 Explorer 0 Win Type - Total 0 Types 0/0/0/0/0/0/0/0/0 Lore% 26 Gallery% 33 Achievement% 26 Wizard Run 0 Options --------- ASCII 1 Keyboard 0 Movement Numpad Keybinds 0 Fullscreen 1 Font 18/SmallcapsGlow Map View 76x50 Tactical HUD 1 Map Filters NONE Filters NONE Steam 1 RUN: ab8a8372-00b2-4363-9edc-51758a4a88fe